[Event "Titled Tuesday Blitz June 6 Early 2023"]
[White "Nepomniachtchi, Ian"]
[Black "Tang, Andrew"]
[WhiteFideId "4168119"]
[BlackFideId "2059630"]
[WhiteElo "2781"]
[BlackElo "2600"]
[Result "1-0"]
[Round "9"]
[TimeControl "180+2"]
[Date "2023.06.06"]
[WhiteClock "0:01:25"]
[BlackClock "0:00:04"]
[Board "8"]

1. e4 {[%clk 0:03:00]}  e5 {[%clk 0:02:58]} 2. f4 {[%clk 0:03:00]}  exf4 {[%clk 0:02:58]} 3. Nf3 {[%clk 0:03:00]}  Ne7 {[%clk 0:02:57]} 4. d4 {[%clk 0:02:59]}  d5 {[%clk 0:02:57]} 5. Bd3 {[%clk 0:02:58]}  dxe4 {[%clk 0:02:20]} 6. Bxe4 {[%clk 0:02:59]}  Ng6 {[%clk 0:02:20]} 7. h4 {[%clk 0:02:59]}  Bb4+ {[%clk 0:01:46]} 8. c3 {[%clk 0:02:50]}  O-O {[%clk 0:00:55]} 9. cxb4 {[%clk 0:02:47]}  Qe7 {[%clk 0:00:54]} 10. Nc3 {[%clk 0:02:46]}  f5 {[%clk 0:00:53]} 11. Ng5 {[%clk 0:02:32]}  fxe4 {[%clk 0:00:31]} 12. Qh5 {[%clk 0:02:29]}  h6 {[%clk 0:00:31]} 13. Qxg6 {[%clk 0:02:28]}  Bf5 {[%clk 0:00:28]} 14. Qh5 {[%clk 0:02:18]}  hxg5 {[%clk 0:00:22]} 15. hxg5 {[%clk 0:02:17]}  Qd6 {[%clk 0:00:23]} 16. Nd5 {[%clk 0:02:02]}  Bg6 {[%clk 0:00:13]} 17. Ne7+ {[%clk 0:01:47]}  Qxe7 {[%clk 0:00:12]} 18. Qxg6 {[%clk 0:01:46]}  Nc6 {[%clk 0:00:08]} 19. Qh7+ {[%clk 0:01:40]}  Kf7 {[%clk 0:00:08]} 20. Bxf4 {[%clk 0:01:41]}  Qxb4+ {[%clk 0:00:07]} 21. Kf2 {[%clk 0:01:35]}  Qxd4+ {[%clk 0:00:06]} 22. Kg3 {[%clk 0:01:35]}  Rad8 {[%clk 0:00:05]} 23. Rae1 {[%clk 0:01:30]}  Qxb2 {[%clk 0:00:03]} 24. Qf5+ {[%clk 0:01:26]}  Ke8 {[%clk 0:00:04]} 25. Rxe4+ {[%clk 0:01:24]}  Ne7 {[%clk 0:00:04]} 26. Rxe7+ {[%clk 0:01:25]} 1-0


[Site "https://www.chess.com"]

[Event "Titled Tuesday Blitz June 6 Early 2023"]
[White "Duda, Jan-Krzysztof"]
[Black "Harsh Suresh"]
[WhiteFideId "1170546"]
[BlackFideId "45018464"]
[WhiteElo "2783"]
[BlackElo "2209"]
[Result "1-0"]
[Round "9"]
[TimeControl "180+2"]
[Date "2023.06.06"]
[WhiteClock "0:00:27"]
[BlackClock "0:00:08"]
[Board "10"]

1. e4 {[%clk 0:03:00]}  c6 {[%clk 0:02:58]} 2. d4 {[%clk 0:02:59]}  d5 {[%clk 0:02:59]} 3. e5 {[%clk 0:03:00]}  c5 {[%clk 0:02:59]} 4. Nf3 {[%clk 0:02:58]}  cxd4 {[%clk 0:02:59]} 5. Nxd4 {[%clk 0:02:57]}  Nc6 {[%clk 0:02:59]} 6. Bb5 {[%clk 0:02:56]}  Bd7 {[%clk 0:02:53]} 7. e6 {[%clk 0:02:49]}  fxe6 {[%clk 0:02:51]} 8. Bxc6 {[%clk 0:02:49]}  bxc6 {[%clk 0:02:51]} 9. Qe2 {[%clk 0:02:47]}  Qc8 {[%clk 0:02:31]} 10. Bf4 {[%clk 0:02:28]}  Nf6 {[%clk 0:02:30]} 11. Nd2 {[%clk 0:02:21]}  g6 {[%clk 0:02:29]} 12. b4 {[%clk 0:02:11]}  Bg7 {[%clk 0:02:28]} 13. Be5 {[%clk 0:02:10]}  O-O {[%clk 0:02:26]} 14. O-O {[%clk 0:01:59]}  a5 {[%clk 0:02:19]} 15. c3 {[%clk 0:01:58]}  c5 {[%clk 0:02:10]} 16. bxc5 {[%clk 0:01:56]}  Qxc5 {[%clk 0:02:11]} 17. Rab1 {[%clk 0:01:54]}  Qc8 {[%clk 0:02:05]} 18. Rfe1 {[%clk 0:01:51]}  Nh5 {[%clk 0:02:03]} 19. N2f3 {[%clk 0:01:44]}  Qa6 {[%clk 0:01:42]} 20. Qxa6 {[%clk 0:01:40]}  Rxa6 {[%clk 0:01:41]} 21. Rb7 {[%clk 0:01:41]}  Rd8 {[%clk 0:01:38]} 22. Bxg7 {[%clk 0:01:25]}  Nxg7 {[%clk 0:01:39]} 23. g4 {[%clk 0:01:24]}  Ne8 {[%clk 0:01:33]} 24. Ne5 {[%clk 0:01:23]}  Rd6 {[%clk 0:01:26]} 25. Ra7 {[%clk 0:01:13]}  a4 {[%clk 0:01:23]} 26. Rb1 {[%clk 0:01:06]}  g5 {[%clk 0:01:11]} 27. Rbb7 {[%clk 0:01:03]}  Nf6 {[%clk 0:01:09]} 28. h4 {[%clk 0:01:03]}  h6 {[%clk 0:01:08]} 29. hxg5 {[%clk 0:01:02]}  hxg5 {[%clk 0:01:09]} 30. f4 {[%clk 0:01:02]}  Bc8 {[%clk 0:00:55]} 31. Rxe7 {[%clk 0:01:01]}  Nd7 {[%clk 0:00:56]} 32. Nxe6 {[%clk 0:00:58]}  Rxe6 {[%clk 0:00:21]} 33. Rxe6 {[%clk 0:00:59]}  Nf8 {[%clk 0:00:21]} 34. Ree7 {[%clk 0:00:54]}  gxf4 {[%clk 0:00:19]} 35. Rg7+ {[%clk 0:00:54]}  Kh8 {[%clk 0:00:19]} 36. Rg5 {[%clk 0:00:50]}  Be6 {[%clk 0:00:16]} 37. Rf7 {[%clk 0:00:43]}  a3 {[%clk 0:00:07]} 38. Rxf8+ {[%clk 0:00:35]}  Rxf8 {[%clk 0:00:07]} 39. Ng6+ {[%clk 0:00:36]}  Kg7 {[%clk 0:00:07]} 40. Nxf4+ {[%clk 0:00:35]}  Kf6 {[%clk 0:00:06]} 41. Rg6+ {[%clk 0:00:34]}  Ke5 {[%clk 0:00:07]} 42. Nxe6 {[%clk 0:00:32]}  Rb8 {[%clk 0:00:06]} 43. Kf2 {[%clk 0:00:31]}  Rb2+ {[%clk 0:00:06]} 44. Ke3 {[%clk 0:00:31]}  Kd6 {[%clk 0:00:04]} 45. Nf4+ {[%clk 0:00:28]}  Kc5 {[%clk 0:00:04]} 46. Nd3+ {[%clk 0:00:28]}  Kb5 {[%clk 0:00:04]} 47. Nxb2 {[%clk 0:00:25]}  axb2 {[%clk 0:00:05]} 48. Rg8 {[%clk 0:00:25]}  Kc4 {[%clk 0:00:03]} 49. Rc8+ {[%clk 0:00:25]}  Kb5 {[%clk 0:00:03]} 50. Kd4 {[%clk 0:00:25]}  Ka4 {[%clk 0:00:02]} 51. Ra8+ {[%clk 0:00:25]}  Kb5 {[%clk 0:00:02]} 52. Kxd5 {[%clk 0:00:25]}  b1=Q {[%clk 0:00:02]} 53. a4+ {[%clk 0:00:24]}  Kb6 {[%clk 0:00:02]} 54. Rb8+ {[%clk 0:00:24]}  Ka5 {[%clk 0:00:03]} 55. Rxb1 {[%clk 0:00:25]}  Kxa4 {[%clk 0:00:04]} 56. Rb4+ {[%clk 0:00:24]}  Ka3 {[%clk 0:00:04]} 57. g5 {[%clk 0:00:24]}  Ka2 {[%clk 0:00:05]} 58. g6 {[%clk 0:00:25]}  Ka3 {[%clk 0:00:06]} 59. g7 {[%clk 0:00:25]}  Ka2 {[%clk 0:00:07]} 60. g8=Q {[%clk 0:00:26]}  Ka3 {[%clk 0:00:08]} 61. Qa8# {[%clk 0:00:27]} 1-0


[Site "https://www.chess.com"]

[Event "Titled Tuesday Blitz June 6 Early 2023"]
[White "Ilamparthi A R"]
[Black "Hakobyan, Aram"]
[WhiteFideId "45015775"]
[BlackFideId "13306677"]
[WhiteElo "2348"]
[BlackElo "2584"]
[Result "0-1"]
[Round "9"]
[TimeControl "180+2"]
[Date "2023.06.06"]
[WhiteClock "0:00:03"]
[BlackClock "0:00:21"]
[Board "12"]

1. e4 {[%clk 0:03:00]}  c5 {[%clk 0:02:59]} 2. Nf3 {[%clk 0:03:00]}  d6 {[%clk 0:02:59]} 3. g3 {[%clk 0:02:59]}  Nf6 {[%clk 0:02:59]} 4. d3 {[%clk 0:03:00]}  g6 {[%clk 0:02:58]} 5. Bg2 {[%clk 0:03:00]}  Bg7 {[%clk 0:02:56]} 6. O-O {[%clk 0:02:59]}  O-O {[%clk 0:02:56]} 7. Re1 {[%clk 0:02:59]}  e5 {[%clk 0:02:54]} 8. c3 {[%clk 0:02:50]}  Nc6 {[%clk 0:02:54]} 9. a3 {[%clk 0:02:50]}  b5 {[%clk 0:02:44]} 10. b4 {[%clk 0:02:40]}  a5 {[%clk 0:02:44]} 11. bxc5 {[%clk 0:02:40]}  dxc5 {[%clk 0:02:45]} 12. Bb2 {[%clk 0:02:40]}  Be6 {[%clk 0:02:38]} 13. a4 {[%clk 0:02:20]}  b4 {[%clk 0:02:38]} 14. cxb4 {[%clk 0:02:20]}  axb4 {[%clk 0:02:36]} 15. Nxe5 {[%clk 0:02:20]}  Na5 {[%clk 0:02:27]} 16. Nd2 {[%clk 0:02:17]}  Nd7 {[%clk 0:02:24]} 17. Ndf3 {[%clk 0:02:15]}  Nb6 {[%clk 0:02:16]} 18. h4 {[%clk 0:01:41]}  Nb3 {[%clk 0:02:09]} 19. Rb1 {[%clk 0:01:41]}  Nxa4 {[%clk 0:02:09]} 20. Nc6 {[%clk 0:01:41]}  Nxb2 {[%clk 0:02:01]} 21. Nxd8 {[%clk 0:01:21]}  Nxd1 {[%clk 0:02:01]} 22. Nxe6 {[%clk 0:01:21]}  fxe6 {[%clk 0:02:02]} 23. Rxb3 {[%clk 0:01:21]}  Nc3 {[%clk 0:02:02]} 24. d4 {[%clk 0:01:21]}  Rxf3 {[%clk 0:01:51]} 25. Bxf3 {[%clk 0:01:18]}  Bxd4 {[%clk 0:01:51]} 26. h5 {[%clk 0:01:08]}  Ra2 {[%clk 0:01:49]} 27. Rf1 {[%clk 0:01:08]}  Kf7 {[%clk 0:01:41]} 28. hxg6+ {[%clk 0:01:05]}  hxg6 {[%clk 0:01:41]} 29. Kg2 {[%clk 0:01:05]}  Be5 {[%clk 0:01:20]} 30. Bg4 {[%clk 0:00:55]}  Ke7 {[%clk 0:01:07]} 31. Kh3 {[%clk 0:00:45]}  Bd4 {[%clk 0:01:07]} 32. f3 {[%clk 0:00:38]}  Kd6 {[%clk 0:01:07]} 33. Re1 {[%clk 0:00:32]}  Ra3 {[%clk 0:01:04]} 34. Rb2 {[%clk 0:00:30]}  b3 {[%clk 0:00:58]} 35. f4 {[%clk 0:00:28]}  c4 {[%clk 0:00:58]} 36. Rd2 {[%clk 0:00:28]}  Nb5 {[%clk 0:00:43]} 37. Be2 {[%clk 0:00:22]}  Kc5 {[%clk 0:00:41]} 38. Rc1 {[%clk 0:00:20]}  Ra4 {[%clk 0:00:40]} 39. Bd1 {[%clk 0:00:19]}  Rb4 {[%clk 0:00:38]} 40. Bxb3 {[%clk 0:00:14]}  Rxb3 {[%clk 0:00:38]} 41. Rdd1 {[%clk 0:00:13]}  c3 {[%clk 0:00:38]} 42. f5 {[%clk 0:00:07]}  exf5 {[%clk 0:00:38]} 43. exf5 {[%clk 0:00:08]}  gxf5 {[%clk 0:00:39]} 44. Rf1 {[%clk 0:00:09]}  Nd6 {[%clk 0:00:36]} 45. Rf3 {[%clk 0:00:09]}  Kc4 {[%clk 0:00:33]} 46. Rf4 {[%clk 0:00:09]}  Ne4 {[%clk 0:00:30]} 47. Rxf5 {[%clk 0:00:09]}  Be3 {[%clk 0:00:30]} 48. Re1 {[%clk 0:00:07]}  c2 {[%clk 0:00:31]} 49. Re5 {[%clk 0:00:08]}  Kd4 {[%clk 0:00:27]} 50. Re8 {[%clk 0:00:07]}  c1=Q {[%clk 0:00:26]} 51. Rxc1 {[%clk 0:00:07]}  Bxc1 {[%clk 0:00:27]} 52. Kh4 {[%clk 0:00:07]}  Bg5+ {[%clk 0:00:26]} 53. Kh3 {[%clk 0:00:08]}  Rxg3+ {[%clk 0:00:25]} 54. Kh2 {[%clk 0:00:08]}  Re3 {[%clk 0:00:26]} 55. Rf8 {[%clk 0:00:07]}  Ke5 {[%clk 0:00:25]} 56. Kg2 {[%clk 0:00:07]}  Rg3+ {[%clk 0:00:25]} 57. Kf1 {[%clk 0:00:07]}  Ra3 {[%clk 0:00:22]} 58. Ke2 {[%clk 0:00:07]}  Ra2+ {[%clk 0:00:22]} 59. Kd3 {[%clk 0:00:07]}  Rd2+ {[%clk 0:00:23]} 60. Kc4 {[%clk 0:00:07]}  Rd4+ {[%clk 0:00:23]} 61. Kb3 {[%clk 0:00:08]}  Nc5+ {[%clk 0:00:23]} 62. Kc3 {[%clk 0:00:08]}  Bd2+ {[%clk 0:00:24]} 63. Kc2 {[%clk 0:00:08]}  Ba5 {[%clk 0:00:22]} 64. Re8+ {[%clk 0:00:09]}  Kd5 {[%clk 0:00:22]} 65. Re2 {[%clk 0:00:09]}  Kc4 {[%clk 0:00:22]} 66. Rh2 {[%clk 0:00:09]}  Bc3 {[%clk 0:00:20]} 67. Rg2 {[%clk 0:00:09]}  Na6 {[%clk 0:00:20]} 68. Rh2 {[%clk 0:00:06]}  Nb4+ {[%clk 0:00:21]} 69. Kc1 {[%clk 0:00:06]}  Kb3 {[%clk 0:00:21]} 70. Rh1 {[%clk 0:00:01]}  Rd2 {[%clk 0:00:20]} 71. Kb1 {[%clk 0:00:02]}  Rb2+ {[%clk 0:00:20]} 72. Kc1 {[%clk 0:00:02]}  Nd3+ {[%clk 0:00:20]} 73. Kd1 {[%clk 0:00:03]}  Rd2# {[%clk 0:00:21]} 0-1


[Site "https://www.chess.com"]

[Event "Titled Tuesday Blitz June 6 Early 2023"]
[White "Samadov, Read"]
[Black "Csonka, Balazs"]
[WhiteFideId "13417444"]
[BlackFideId "742910"]
[WhiteElo "2355"]
[BlackElo "2404"]
[Result "1-0"]
[Round "9"]
[TimeControl "180+2"]
[Date "2023.06.06"]
[WhiteClock "0:00:04"]
[BlackClock "0:00:02"]
[Board "15"]

1. c4 {[%clk 0:03:00]}  c5 {[%clk 0:02:51]} 2. Nc3 {[%clk 0:03:00]}  g6 {[%clk 0:02:50]} 3. Nf3 {[%clk 0:02:59]}  Bg7 {[%clk 0:02:50]} 4. g3 {[%clk 0:02:57]}  Nc6 {[%clk 0:02:49]} 5. Bg2 {[%clk 0:02:58]}  e6 {[%clk 0:02:48]} 6. O-O {[%clk 0:02:58]}  Nge7 {[%clk 0:02:48]} 7. a3 {[%clk 0:02:58]}  O-O {[%clk 0:02:46]} 8. Rb1 {[%clk 0:02:55]}  d5 {[%clk 0:02:46]} 9. cxd5 {[%clk 0:02:37]}  exd5 {[%clk 0:02:41]} 10. d3 {[%clk 0:02:37]}  b6 {[%clk 0:02:08]} 11. Bd2 {[%clk 0:02:34]}  a5 {[%clk 0:02:06]} 12. a4 {[%clk 0:02:30]}  Ba6 {[%clk 0:02:02]} 13. h4 {[%clk 0:02:25]}  Qd7 {[%clk 0:01:49]} 14. h5 {[%clk 0:02:23]}  Rfe8 {[%clk 0:01:46]} 15. Ng5 {[%clk 0:02:14]}  Rad8 {[%clk 0:01:39]} 16. Rc1 {[%clk 0:01:58]}  h6 {[%clk 0:01:31]} 17. Bh3 {[%clk 0:01:38]}  Qd6 {[%clk 0:01:19]} 18. Nf3 {[%clk 0:01:33]}  g5 {[%clk 0:01:18]} 19. Re1 {[%clk 0:01:27]}  Nb4 {[%clk 0:01:03]} 20. Nxg5 {[%clk 0:01:14]}  hxg5 {[%clk 0:01:02]} 21. Bxg5 {[%clk 0:01:15]}  Bh6 {[%clk 0:00:44]} 22. Qd2 {[%clk 0:01:13]}  Kg7 {[%clk 0:00:42]} 23. e4 {[%clk 0:00:47]}  Ng8 {[%clk 0:00:35]} 24. Rcd1 {[%clk 0:00:26]}  Nxd3 {[%clk 0:00:32]} 25. Nxd5 {[%clk 0:00:26]}  Nxe1 {[%clk 0:00:26]} 26. Rxe1 {[%clk 0:00:27]}  Re5 {[%clk 0:00:19]} 27. Bxh6+ {[%clk 0:00:21]}  Qxh6 {[%clk 0:00:19]} 28. Qc3 {[%clk 0:00:20]}  f6 {[%clk 0:00:18]} 29. Nf4 {[%clk 0:00:18]}  Ne7 {[%clk 0:00:13]} 30. Qb3 {[%clk 0:00:06]}  Nc6 {[%clk 0:00:02]} 31. Qxb6 {[%clk 0:00:05]}  Nd4 {[%clk 0:00:02]} 32. Qxd8 {[%clk 0:00:04]}  Nf3+ {[%clk 0:00:02]} 33. Kh1 {[%clk 0:00:04]}  Nxe1 {[%clk 0:00:03]} 34. Qd7+ {[%clk 0:00:03]}  Kg8 {[%clk 0:00:02]} 35. Be6+ {[%clk 0:00:04]}  Rxe6 {[%clk 0:00:02]} 36. Qxe6+ {[%clk 0:00:04]}  Kg7 {[%clk 0:00:02]} 37. Qxa6 {[%clk 0:00:04]}  Qg5 {[%clk 0:00:02]} 38. Ne6+ {[%clk 0:00:04]} 1-0


[Site "https://www.chess.com"]

[Event "Titled Tuesday Blitz June 6 Early 2023"]
[White "Rustemov, Alexander"]
[Black "Pakleza, Zbigniew"]
[WhiteFideId "4119002"]
[BlackFideId "1119290"]
[WhiteElo "2884"]
[BlackElo "2410"]
[Result "0-1"]
[Round "9"]
[TimeControl "180+2"]
[Date "2023.06.06"]
[WhiteClock "0:00:02"]
[BlackClock "0:00:02"]
[Board "16"]

1. d4 {[%clk 0:03:00]}  d6 {[%clk 0:03:00]} 2. Nf3 {[%clk 0:02:59]}  Bg4 {[%clk 0:03:00]} 3. c4 {[%clk 0:02:58]}  c6 {[%clk 0:03:00]} 4. Nc3 {[%clk 0:02:57]}  Nf6 {[%clk 0:02:59]} 5. g3 {[%clk 0:02:55]}  Bxf3 {[%clk 0:02:55]} 6. exf3 {[%clk 0:02:55]}  e6 {[%clk 0:02:56]} 7. d5 {[%clk 0:02:54]}  exd5 {[%clk 0:02:57]} 8. cxd5 {[%clk 0:02:53]}  c5 {[%clk 0:02:58]} 9. Bh3 {[%clk 0:02:49]}  Be7 {[%clk 0:02:52]} 10. O-O {[%clk 0:02:46]}  O-O {[%clk 0:02:53]} 11. Re1 {[%clk 0:02:44]}  Na6 {[%clk 0:02:45]} 12. Be3 {[%clk 0:02:43]}  Re8 {[%clk 0:02:39]} 13. Qd2 {[%clk 0:02:42]}  Rb8 {[%clk 0:02:32]} 14. Bf1 {[%clk 0:02:35]}  Nc7 {[%clk 0:02:29]} 15. a4 {[%clk 0:02:31]}  a6 {[%clk 0:02:19]} 16. Rab1 {[%clk 0:02:24]}  b5 {[%clk 0:02:02]} 17. b4 {[%clk 0:02:23]}  cxb4 {[%clk 0:01:34]} 18. Rxb4 {[%clk 0:02:22]}  a5 {[%clk 0:01:34]} 19. Rxb5 {[%clk 0:02:21]}  Nxb5 {[%clk 0:01:34]} 20. Nxb5 {[%clk 0:02:13]}  Qd7 {[%clk 0:01:19]} 21. Na7 {[%clk 0:02:02]}  Qxa4 {[%clk 0:01:09]} 22. Nc6 {[%clk 0:01:56]}  Bf8 {[%clk 0:00:57]} 23. Nxa5 {[%clk 0:01:52]}  Re5 {[%clk 0:00:31]} 24. Nc4 {[%clk 0:01:17]}  Rxd5 {[%clk 0:00:28]} 25. Qc1 {[%clk 0:01:07]}  Rc8 {[%clk 0:00:22]} 26. Qc3 {[%clk 0:00:32]}  Rb5 {[%clk 0:00:22]} 27. Qd3 {[%clk 0:00:22]}  Rb3 {[%clk 0:00:15]} 28. Qe2 {[%clk 0:00:21]}  Qb5 {[%clk 0:00:13]} 29. Rd1 {[%clk 0:00:14]}  d5 {[%clk 0:00:12]} 30. Ne5 {[%clk 0:00:12]}  Qxe2 {[%clk 0:00:13]} 31. Bxe2 {[%clk 0:00:13]}  Re8 {[%clk 0:00:10]} 32. f4 {[%clk 0:00:12]}  h6 {[%clk 0:00:09]} 33. Bf3 {[%clk 0:00:12]}  Rd8 {[%clk 0:00:09]} 34. Kg2 {[%clk 0:00:12]}  Rb2 {[%clk 0:00:08]} 35. Bd4 {[%clk 0:00:12]}  Rb7 {[%clk 0:00:08]} 36. Nc6 {[%clk 0:00:12]}  Rd6 {[%clk 0:00:06]} 37. Bxf6 {[%clk 0:00:11]}  Rxf6 {[%clk 0:00:05]} 38. Bxd5 {[%clk 0:00:10]}  Rd7 {[%clk 0:00:05]} 39. Ne5 {[%clk 0:00:10]}  Rc7 {[%clk 0:00:06]} 40. Bb3 {[%clk 0:00:08]}  g6 {[%clk 0:00:05]} 41. Rd8 {[%clk 0:00:08]}  Kg7 {[%clk 0:00:05]} 42. h4 {[%clk 0:00:06]}  h5 {[%clk 0:00:05]} 43. Bd5 {[%clk 0:00:06]}  Rd6 {[%clk 0:00:04]} 44. Rxd6 {[%clk 0:00:05]}  Bxd6 {[%clk 0:00:05]} 45. Nc6 {[%clk 0:00:05]}  Rb7 {[%clk 0:00:03]} 46. Bf3 {[%clk 0:00:05]}  Rb2 {[%clk 0:00:03]} 47. Ne5 {[%clk 0:00:04]}  Rd2 {[%clk 0:00:01]} 48. Nc4 {[%clk 0:00:03]}  Rd4 {[%clk 0:00:02]} 49. Nxd6 {[%clk 0:00:03]}  Rxd6 {[%clk 0:00:03]} 50. Kf1 {[%clk 0:00:04]}  Kf6 {[%clk 0:00:03]} 51. Ke2 {[%clk 0:00:04]}  Rb6 {[%clk 0:00:04]} 52. Ke3 {[%clk 0:00:05]}  Rb4 {[%clk 0:00:05]} 53. Ke2 {[%clk 0:00:05]}  Rb3 {[%clk 0:00:05]} 54. Be4 {[%clk 0:00:05]}  Ra3 {[%clk 0:00:06]} 55. Bf3 {[%clk 0:00:05]}  Ke6 {[%clk 0:00:06]} 56. Be4 {[%clk 0:00:05]}  Ra4 {[%clk 0:00:05]} 57. Bf3 {[%clk 0:00:05]}  Rb4 {[%clk 0:00:05]} 58. Ke3 {[%clk 0:00:05]}  Kf5 {[%clk 0:00:05]} 59. Ke2 {[%clk 0:00:05]}  Rb2+ {[%clk 0:00:05]} 60. Ke3 {[%clk 0:00:06]}  Rb3+ {[%clk 0:00:05]} 61. Ke2 {[%clk 0:00:07]}  f6 {[%clk 0:00:06]} 62. Bd5 {[%clk 0:00:07]}  Ra3 {[%clk 0:00:04]} 63. Bc6 {[%clk 0:00:06]}  Ke6 {[%clk 0:00:03]} 64. Be4 {[%clk 0:00:06]}  Kf7 {[%clk 0:00:02]} 65. Bd5+ {[%clk 0:00:06]}  Kg7 {[%clk 0:00:02]} 66. Be4 {[%clk 0:00:07]}  Kh6 {[%clk 0:00:03]} 67. Bf3 {[%clk 0:00:07]}  Rb3 {[%clk 0:00:03]} 68. Be4 {[%clk 0:00:07]}  Rb2+ {[%clk 0:00:04]} 69. Ke3 {[%clk 0:00:07]}  Ra2 {[%clk 0:00:04]} 70. Bf3 {[%clk 0:00:07]}  g5 {[%clk 0:00:04]} 71. fxg5+ {[%clk 0:00:07]}  fxg5 {[%clk 0:00:05]} 72. hxg5+ {[%clk 0:00:07]}  Kxg5 {[%clk 0:00:05]} 73. Be4 {[%clk 0:00:08]}  Ra3+ {[%clk 0:00:04]} 74. Ke2 {[%clk 0:00:08]}  Ra4 {[%clk 0:00:05]} 75. Ke3 {[%clk 0:00:07]}  Ra3+ {[%clk 0:00:05]} 76. Ke2 {[%clk 0:00:08]}  Kg4 {[%clk 0:00:06]} 77. Bd5 {[%clk 0:00:07]}  Kh3 {[%clk 0:00:04]} 78. Bf7 {[%clk 0:00:05]}  Ra5 {[%clk 0:00:04]} 79. Ke3 {[%clk 0:00:03]}  Kg2 {[%clk 0:00:03]} 80. Bc4 {[%clk 0:00:02]}  Rf5 {[%clk 0:00:02]} 0-1


[Site "https://www.chess.com"]

[Event "Titled Tuesday Blitz June 6 Early 2023"]
[White "Sanal, Vahap"]
[Black "Papasimakopoulos, Alexandros"]
[WhiteFideId "6300545"]
[BlackFideId "4244125"]
[WhiteElo "2606"]
[BlackElo "2359"]
[Result "1/2-1/2"]
[Round "9"]
[TimeControl "180+2"]
[Date "2023.06.06"]
[WhiteClock "0:00:16"]
[BlackClock "0:00:09"]
[Board "17"]

1. e4 {[%clk 0:03:00]}  e6 {[%clk 0:02:57]} 2. Qe2 {[%clk 0:02:57]}  c5 {[%clk 0:02:55]} 3. g3 {[%clk 0:02:57]}  Nc6 {[%clk 0:02:54]} 4. Bg2 {[%clk 0:02:54]}  g6 {[%clk 0:02:52]} 5. Nf3 {[%clk 0:02:50]}  Bg7 {[%clk 0:02:52]} 6. O-O {[%clk 0:02:50]}  Nge7 {[%clk 0:02:52]} 7. c3 {[%clk 0:02:51]}  d5 {[%clk 0:02:51]} 8. d3 {[%clk 0:02:48]}  b6 {[%clk 0:02:49]} 9. Re1 {[%clk 0:02:43]}  h6 {[%clk 0:02:48]} 10. exd5 {[%clk 0:02:37]}  exd5 {[%clk 0:02:48]} 11. d4 {[%clk 0:02:30]}  O-O {[%clk 0:02:34]} 12. Be3 {[%clk 0:02:29]}  Nf5 {[%clk 0:01:56]} 13. Qd2 {[%clk 0:02:13]}  Nxe3 {[%clk 0:01:47]} 14. Rxe3 {[%clk 0:02:11]}  Be6 {[%clk 0:01:34]} 15. Na3 {[%clk 0:02:11]}  cxd4 {[%clk 0:01:33]} 16. cxd4 {[%clk 0:02:09]}  Qd7 {[%clk 0:01:27]} 17. Nc2 {[%clk 0:02:06]}  Rac8 {[%clk 0:01:27]} 18. Rae1 {[%clk 0:02:06]}  Qd6 {[%clk 0:01:21]} 19. a3 {[%clk 0:02:06]}  Na5 {[%clk 0:01:18]} 20. Rc3 {[%clk 0:02:01]}  Rxc3 {[%clk 0:01:16]} 21. bxc3 {[%clk 0:01:57]}  Nc4 {[%clk 0:01:15]} 22. Qc1 {[%clk 0:01:57]}  Rc8 {[%clk 0:01:10]} 23. h4 {[%clk 0:01:56]}  Bf5 {[%clk 0:01:07]} 24. Ne3 {[%clk 0:01:52]}  Nxe3 {[%clk 0:01:01]} 25. Rxe3 {[%clk 0:01:53]}  Be4 {[%clk 0:00:58]} 26. Qb2 {[%clk 0:01:46]}  Bf8 {[%clk 0:00:54]} 27. Ne5 {[%clk 0:01:40]}  Bxg2 {[%clk 0:00:51]} 28. Kxg2 {[%clk 0:01:40]}  Qxa3 {[%clk 0:00:48]} 29. Qe2 {[%clk 0:01:41]}  Qd6 {[%clk 0:00:37]} 30. Qf3 {[%clk 0:01:34]}  Rc7 {[%clk 0:00:37]} 31. Ng4 {[%clk 0:01:34]}  Bg7 {[%clk 0:00:33]} 32. Re8+ {[%clk 0:01:33]}  Kh7 {[%clk 0:00:33]} 33. h5 {[%clk 0:01:33]}  a5 {[%clk 0:00:28]} 34. Ne3 {[%clk 0:01:32]}  Rd7 {[%clk 0:00:25]} 35. Nf5 {[%clk 0:01:25]}  Qf6 {[%clk 0:00:20]} 36. Ne3 {[%clk 0:01:03]}  Qxf3+ {[%clk 0:00:20]} 37. Kxf3 {[%clk 0:01:04]}  Ra7 {[%clk 0:00:16]} 38. Nxd5 {[%clk 0:01:03]}  a4 {[%clk 0:00:16]} 39. Re2 {[%clk 0:01:03]}  b5 {[%clk 0:00:16]} 40. Rb2 {[%clk 0:01:01]}  a3 {[%clk 0:00:16]} 41. Ra2 {[%clk 0:01:01]}  Bf8 {[%clk 0:00:16]} 42. Ke3 {[%clk 0:00:59]}  gxh5 {[%clk 0:00:16]} 43. Kd3 {[%clk 0:00:59]}  Kg6 {[%clk 0:00:16]} 44. Kc2 {[%clk 0:01:00]}  Kf5 {[%clk 0:00:17]} 45. Kb3 {[%clk 0:01:00]}  Ke4 {[%clk 0:00:17]} 46. Nf6+ {[%clk 0:01:00]}  Kf3 {[%clk 0:00:17]} 47. Nxh5 {[%clk 0:01:00]}  f5 {[%clk 0:00:14]} 48. Nf4 {[%clk 0:01:00]}  Bd6 {[%clk 0:00:14]} 49. Nd5 {[%clk 0:00:56]}  f4 {[%clk 0:00:13]} 50. gxf4 {[%clk 0:00:55]}  h5 {[%clk 0:00:13]} 51. Ne3 {[%clk 0:00:52]}  h4 {[%clk 0:00:13]} 52. Nf5 {[%clk 0:00:52]}  Be7 {[%clk 0:00:12]} 53. Ra1 {[%clk 0:00:32]}  Bf6 {[%clk 0:00:08]} 54. Ka2 {[%clk 0:00:27]}  Kxf4 {[%clk 0:00:08]} 55. Ne3 {[%clk 0:00:26]}  Kf3 {[%clk 0:00:08]} 56. Rb1 {[%clk 0:00:23]}  h3 {[%clk 0:00:07]} 57. Rxb5 {[%clk 0:00:24]}  Rh7 {[%clk 0:00:06]} 58. Rf5+ {[%clk 0:00:24]}  Ke2 {[%clk 0:00:06]} 59. Ng4 {[%clk 0:00:22]}  Be7 {[%clk 0:00:07]} 60. Re5+ {[%clk 0:00:23]}  Kd3 {[%clk 0:00:07]} 61. Re3+ {[%clk 0:00:22]}  Kc4 {[%clk 0:00:07]} 62. Ne5+ {[%clk 0:00:21]}  Kd5 {[%clk 0:00:07]} 63. Nf3 {[%clk 0:00:22]}  Bd6 {[%clk 0:00:06]} 64. Re1 {[%clk 0:00:17]}  h2 {[%clk 0:00:06]} 65. Rh1 {[%clk 0:00:18]}  Kc4 {[%clk 0:00:06]} 66. Nd2+ {[%clk 0:00:17]}  Kxc3 {[%clk 0:00:06]} 67. Ne4+ {[%clk 0:00:18]}  Kxd4 {[%clk 0:00:06]} 68. Nxd6 {[%clk 0:00:19]}  Rh5 {[%clk 0:00:06]} 69. f4 {[%clk 0:00:17]}  Kd5 {[%clk 0:00:05]} 70. Ne8 {[%clk 0:00:17]}  Rh4 {[%clk 0:00:04]} 71. f5 {[%clk 0:00:15]}  Ke5 {[%clk 0:00:05]} 72. f6 {[%clk 0:00:16]}  Ke6 {[%clk 0:00:05]} 73. Kxa3 {[%clk 0:00:15]}  Kf7 {[%clk 0:00:05]} 74. Nc7 {[%clk 0:00:15]}  Kxf6 {[%clk 0:00:05]} 75. Nd5+ {[%clk 0:00:14]}  Ke5 {[%clk 0:00:06]} 76. Ne3 {[%clk 0:00:15]}  Rh3 {[%clk 0:00:06]} 77. Kb4 {[%clk 0:00:14]}  Rxe3 {[%clk 0:00:06]} 78. Rxh2 {[%clk 0:00:14]}  Rf3 {[%clk 0:00:06]} 79. Kc4 {[%clk 0:00:15]}  Ke4 {[%clk 0:00:07]} 80. Rh6 {[%clk 0:00:15]}  Rf4 {[%clk 0:00:07]} 81. Re6+ {[%clk 0:00:15]}  Kf5+ {[%clk 0:00:07]} 82. Kd5 {[%clk 0:00:16]}  Rd4+ {[%clk 0:00:08]} 83. Kxd4 {[%clk 0:00:16]}  Kxe6 {[%clk 0:00:09]} 1/2-1/2


[Site "https://www.chess.com"]